bitfinex-derivatives/quotes_BTCF0:USTF0_20251209
["timestamp","ask_amount","ask_price","bid_price","bid_amount"]
[1765284381010,0.00016545,90667.0,90666.0,0.4231]
[1765284381316,0.00016545,90667.0,90666.0,0.4211]
[1765284381521,0.00016545,90667.0,90666.0,0.4251]
[1765284381814,0.00016545,90667.0,90666.0,0.4231]
[1765284382009,0.00016545,90667.0,90666.0,0.4251]
[1765284384323,0.00016545,90667.0,90666.0,0.4211]
[1765284384512,0.00016545,90667.0,90666.0,0.4251]
[1765284385510,0.05958243,90674.0,90666.0,0.4251]
[1765284385711,0.05274761,90677.0,90676.0,0.05851]
[1765284385916,0.0665076,90684.0,90683.0,0.0695376]
[1765284387924,0.0665076,90684.0,90683.0,0.0705376]
[1765284389818,0.05548,90684.0,90683.0,0.0705376]
[1765284392324,0.01695,90690.0,90683.0,0.0705376]
[1765284392528,0.05548,90698.0,90697.0,0.05851]
[1765284394626,0.05748,90698.0,90697.0,0.05851]
[1765284395716,0.05948,90698.0,90697.0,0.05851]
[1765284403540,0.42028,90698.0,90697.0,0.0695359]
[1765284403941,0.42028,90698.0,90697.0,0.0110259]
[1765284404240,0.42028,90698.0,90684.0,0.41931]
[1765284404241,0.05548,90685.0,90684.0,0.41931]
[1765284404440,0.05548,90685.0,90684.0,0.93103]
[1765284406146,0.0271,90685.0,90684.0,0.93103]
[1765284406346,0.07304,90692.0,90691.0,0.05851]
[1765284406846,0.07304,90692.0,90691.0,0.0695366]
[1765284407049,0.05548,90692.0,90691.0,0.0695366]
[1765284407951,0.05648,90692.0,90691.0,0.0695366]
[1765284408141,0.05748,90692.0,90691.0,0.0695366]
[1765284409346,0.07504,90692.0,90691.0,0.0695366]
[1765284414555,0.0291,90692.0,90691.0,0.0695366]
[1765284415056,0.05642,90692.0,90691.0,0.0695366]
[1765284416961,0.0729,90692.0,90691.0,0.0695366]
[1765284418948,0.0291,90692.0,90691.0,0.0695366]
[1765284419464,0.0729,90692.0,90691.0,0.0695366]
[1765284421262,0.0729,90692.0,90691.0,0.0110266]
[1765284421563,0.0555,90678.0,90677.0,0.0110282]
[1765284421764,0.0555,90678.0,90677.0,0.0386582]
[1765284422062,0.0555,90678.0,90677.0,0.0386583]
[1765284422947,0.0555,90678.0,90677.0,0.0682283]
[1765284423566,0.0555,90678.0,90677.0,0.0692283]
[1765284424350,0.0555,90678.0,90677.0,0.0682283]
[1765284424557,0.4163,90681.0,90680.0,0.066228]
[1765284426866,0.4163,90681.0,90680.0,0.067228]
[1765284432270,0.4273278,90681.0,90680.0,0.067228]
[1765284433470,0.4273278,90681.0,90680.0,0.079488]
[1765284433471,0.3608,90681.0,90680.0,0.079488]
[1765284433671,0.05764,90685.0,90684.0,0.0693375]
[1765284436880,0.05764,90685.0,90684.0,0.0402675]
[1765284438270,0.0686674,90685.0,90684.0,0.0402675]
[1765284438476,0.0686674,90685.0,90684.0,0.0110275]
[1765284438662,0.0686674,90685.0,90684.0,0.0402675]
[1765284438868,0.0686674,90685.0,90684.0,0.0110275]
[1765284439171,0.12820666,90685.0,90684.0,0.0110275]
[1765284439675,0.12820666,90685.0,90680.0,0.3608]
[1765284439676,0.0686678,90682.0,90681.0,0.0110277]
[1765284440777,0.0686678,90682.0,90681.0,0.0402677]
[1765284440979,0.0686678,90682.0,90681.0,0.0120277]
[1765284442378,0.0686678,90682.0,90681.0,0.0402677]
[1765284442579,0.0686678,90682.0,90681.0,0.0412677]
[1765284443778,0.0686678,90682.0,90681.0,0.0120277]
[1765284444278,0.0686678,90682.0,90681.0,0.001]
[1765284444677,0.0686678,90682.0,90674.0,0.00016545]
[1765284444678,0.0691686,90675.0,90674.0,0.00016545]
[1765284445076,0.07324,90660.0,90659.0,0.0670005]
[1765284446473,0.07324,90660.0,90659.0,0.0690005]
[1765284446871,0.07324,90660.0,90659.0,0.0670005]
[1765284447071,0.07324,90660.0,90659.0,0.0690005]
[1765284447270,0.07324,90660.0,90659.0,0.0700005]
[1765284447978,0.07324,90660.0,90659.0,0.0690005]
[1765284448177,0.07324,90660.0,90659.0,0.0700005]
[1765284448485,0.07324,90660.0,90659.0,0.0680005]
[1765284448688,0.07324,90660.0,90659.0,0.0700005]
[1765284449682,0.07324,90660.0,90659.0,0.0680005]
[1765284449874,0.07324,90660.0,90659.0,0.0700005]
[1765284450277,0.07324,90660.0,90659.0,0.0680005]
[1765284450575,0.07324,90660.0,90659.0,0.0700005]
[1765284452383,0.07324,90660.0,90659.0,0.0680005]
[1765284452575,0.07324,90660.0,90659.0,0.0700005]
[1765284452974,0.07324,90660.0,90659.0,0.0680005]
[1765284453185,0.07324,90660.0,90659.0,0.0690005]
[1765284453883,0.07324,90660.0,90659.0,0.0130305]
[1765284454488,0.07324,90660.0,90659.0,0.0690005]
[1765284456488,0.05814,90660.0,90659.0,0.0690005]
[1765284456977,0.0761,90660.0,90659.0,0.0690005]
[1765284457984,0.0871304,90660.0,90659.0,0.0690005]
[1765284459398,0.00016545,90669.0,90668.0,0.05597]
[1765284459587,0.0691665,90692.0,90691.0,0.05597]
[1765284459887,0.05948187,90697.0,90687.0,0.0387271]
[1765284459888,0.069167,90688.0,90687.0,0.0387271]
[1765284460083,0.05814,90688.0,90687.0,0.0110271]
[1765284460384,0.05814,90688.0,90687.0,0.0669971]
[1765284460587,0.02889,90688.0,90687.0,0.0669971]
[1765284460883,0.05814,90688.0,90687.0,0.0669971]
[1765284462279,0.05914,90688.0,90687.0,0.0669971]
[1765284462486,0.06014,90688.0,90687.0,0.0669971]
[1765284470289,0.06014,90688.0,90687.0,0.0110271]
[1765284470794,0.06014,90688.0,90687.0,0.0387271]
[1765284470993,0.06014,90688.0,90687.0,0.0669971]
[1765284480402,0.03089,90688.0,90687.0,0.0669971]
[1765284480598,0.002,90688.0,90687.0,0.0669971]
[1765284480898,0.02921,90688.0,90687.0,0.0669971]
[1765284481105,0.002,90688.0,90687.0,0.0669971]
[1765284481492,0.05885,90688.0,90687.0,0.0669971]
[1765284481904,0.02921,90688.0,90687.0,0.0669971]
[1765284482099,0.05885,90688.0,90687.0,0.0669971]
[1765284482391,0.002,90688.0,90687.0,0.0669971]
[1765284482899,0.05885,90688.0,90687.0,0.0669971]
[1765284483102,0.002,90688.0,90687.0,0.0669971]
[1765284483700,0.05885,90688.0,90687.0,0.0669971]
[1765284489110,0.05885,90688.0,90687.0,0.0110271]
[1765284489308,0.01648,90685.0,90678.0,0.00016545]
[1765284489605,0.05691,90682.0,90681.0,0.0110278]
[1765284489809,0.11646336,90682.0,90681.0,0.0661778]
[1765284490014,0.11646336,90682.0,90681.0,0.0384778]
[1765284490504,0.11646336,90682.0,90681.0,0.0110278]
[1765284491011,0.11646336,90682.0,90681.0,0.0661778]
[1765284491415,0.05691,90682.0,90681.0,0.0661778]
[1765284499103,0.05691,90682.0,90681.0,0.0110278]
[1765284499310,0.0679377,90682.0,90681.0,0.0110278]
[1765284502419,0.0679377,90682.0,90681.0,0.0384778]
[1765284502620,0.05691,90682.0,90681.0,0.0384778]
[1765284502822,0.05691,90682.0,90681.0,0.0660378]
[1765284504918,0.01648,90685.0,90681.0,0.0660378]
[1765284504919,0.08733336,90689.0,90688.0,0.0556]
[1765284505218,0.05587,90689.0,90688.0,0.0556]
[1765284506017,0.05587,90688.0,90687.0,0.0110271]
[1765284506219,0.05587,90688.0,90687.0,0.0390671]
[1765284506423,0.05587,90688.0,90687.0,0.0666271]
[1765284507122,0.05687,90688.0,90687.0,0.0666271]
[1765284507717,0.05787,90688.0,90687.0,0.0666271]
[1765284508124,0.05787,90688.0,90687.0,0.0110271]
[1765284508423,0.05787,90688.0,90687.0,0.0666271]
[1765284510421,0.05787,90688.0,90687.0,0.0390671]
[1765284510727,0.05787,90688.0,90687.0,0.0110271]
[1765284510925,0.05787,90688.0,90687.0,0.0666271]
[1765284511425,0.11742336,90688.0,90687.0,0.0666271]
[1765284515329,0.05787,90688.0,90687.0,0.0666271]
[1765284515720,0.11738285,90688.0,90687.0,0.0666271]
[1765284516423,0.05787,90688.0,90687.0,0.0666271]
[1765284517128,0.07476,90688.0,90687.0,0.0666271]
[1765284531349,0.05787,90688.0,90687.0,0.0666271]
[1765284531646,0.11740915,90688.0,90687.0,0.4274271]
[1765284531844,0.13429915,90688.0,90687.0,0.4274271]
[1765284532043,0.11740915,90688.0,90687.0,0.4274271]
[1765284532644,0.11794915,90688.0,90687.0,0.4274271]
[1765284532942,0.13431915,90688.0,90687.0,0.4274271]
[1765284533345,0.07478,90688.0,90687.0,0.4274271]
[1765284533646,0.05965,90688.0,90687.0,0.4274271]
[1765284534246,0.07602,90688.0,90687.0,0.4274271]
[1765284535251,0.002,90688.0,90687.0,0.4274271]
[1765284535447,0.05965,90688.0,90687.0,0.4274271]
[1765284536153,0.002,90688.0,90687.0,0.4274271]
[1765284536453,0.05965,90688.0,90687.0,0.4274271]
[1765284537840,0.07602,90688.0,90687.0,0.4274271]
[1765284542143,0.05965,90688.0,90687.0,0.4274271]
[1765284546050,0.07602,90688.0,90687.0,0.4274271]
[1765284549160,0.05965,90688.0,90687.0,0.4274271]
[1765284550257,0.002,90688.0,90687.0,0.4274271]
[1765284551161,0.05883,90688.0,90687.0,0.4274271]
[1765284551548,0.05883,90688.0,90687.0,0.0666271]
[1765284551549,0.13494776,90688.0,90687.0,0.0666271]
[1765284552061,0.07538,90688.0,90687.0,0.0666271]
[1765284553147,0.07538,90688.0,90687.0,0.0390671]
[1765284553352,0.07538,90688.0,90687.0,0.0696071]
[1765284555257,0.002,90688.0,90687.0,0.0696071]
[1765284555564,0.05883,90688.0,90687.0,0.0696071]
[1765284557256,0.07538,90688.0,90687.0,0.0696071]
[1765284558263,0.05883,90688.0,90687.0,0.0696071]
[1765284558462,0.07538,90688.0,90687.0,0.0696071]
[1765284564067,0.03025,90688.0,90687.0,0.0696071]
[1765284564376,0.002,90688.0,90687.0,0.0696071]
[1765284566675,0.02985,90688.0,90687.0,0.0696071]
[1765284568974,0.05854,90688.0,90687.0,0.0696071]
[1765284569273,0.07514,90688.0,90687.0,0.0400871]
[1765284569463,0.07514,90688.0,90687.0,0.5816771]
[1765284570070,0.08941776,90688.0,90687.0,0.5816771]
[1765284570375,0.002,90688.0,90687.0,0.5816771]
[1765284570576,0.02985,90688.0,90687.0,0.5816771]
[1765284570875,0.05854,90688.0,90687.0,0.5816771]
[1765284571991,0.07514,90688.0,90687.0,0.5816771]
[1765284572176,0.05854,90688.0,90687.0,0.5816771]
[1765284575684,0.002,90688.0,90687.0,0.5816771]
[1765284576871,0.10723568,90695.0,90694.0,0.0698363]
[1765284577079,0.05654,90695.0,90694.0,0.4306363]
[1765284578087,0.05854,90695.0,90694.0,0.4306363]
[1765284578284,0.06154,90695.0,90694.0,0.4306363]
[1765284578676,0.005,90695.0,90694.0,0.4306363]
[1765284579077,0.005,90695.0,90694.0,0.44185239]
[1765284579880,0.06154,90695.0,90694.0,0.4306363]
[1765284581976,0.06154,90695.0,90694.0,0.9422363]
[1765284586586,0.03285,90695.0,90694.0,0.9422363]
[1765284588191,0.005,90695.0,90694.0,0.9422363]
[1765284590090,0.03285,90695.0,90694.0,0.9422363]
[1765284590292,0.06154,90695.0,90694.0,0.9422363]
[1765284594502,0.005,90695.0,90694.0,0.9422363]
[1765284597578,0.002,90695.0,90694.0,0.9462363]
[1765284597991,0.002,90695.0,90694.0,0.9422363]
[1765284598194,0.05444,90704.0,90703.0,0.0674752]
[1765284599488,0.13167088,90704.0,90703.0,0.0674752]
[1765284599994,0.13167088,90704.0,90703.0,0.0684752]
[1765284600293,0.13167088,90704.0,90703.0,0.0704752]
[1765284600895,0.13167088,90704.0,90703.0,0.0684752]
[1765284601186,0.43292,90704.0,90703.0,0.003]
[1765284601389,0.43292,90704.0,90703.0,0.002]
[1765284601584,0.43292,90704.0,90703.0,0.003]
[1765284601779,0.43292,90704.0,90703.0,0.0140252]
[1765284601986,0.43292,90704.0,90703.0,0.003]
[1765284602189,0.43292,90704.0,90703.0,0.002]
[1765284602490,0.43392,90704.0,90703.0,0.002]
[1765284602883,0.05444,90695.0,90694.0,0.3608]
[1765284603391,0.55231991,90704.0,90703.0,0.0674752]
[1765284603392,0.02816,90704.0,90703.0,0.0674752]
[1765284603596,0.11593193,90704.0,90703.0,0.0674752]
[1765284603780,0.11593068,90704.0,90703.0,0.0674752]
[1765284603986,0.05644,90704.0,90703.0,0.0674752]
[1765284604188,0.05544,90704.0,90703.0,0.0674752]
[1765284604389,0.1149361,90704.0,90703.0,0.0674752]
[1765284604590,0.05544,90704.0,90703.0,0.0674752]
[1765284604794,0.11493637,90704.0,90703.0,0.0674752]
[1765284605179,0.05544,90704.0,90703.0,0.0674752]
[1765284605385,0.05444,90704.0,90703.0,0.0684752]
[1765284606194,0.05444,90704.0,90703.0,0.0704752]
[1765284606586,0.05444,90704.0,90703.0,0.0694752]
[1765284607694,0.05444,90704.0,90703.0,0.0674752]
[1765284607894,0.05444,90704.0,90703.0,0.0684752]
[1765284608298,0.05444,90704.0,90703.0,0.001]
[1765284608492,0.05444,90704.0,90703.0,0.05846]
[1765284608887,0.05444,90704.0,90703.0,0.001]
[1765284609288,0.07328,90700.0,90699.0,0.05813]
[1765284609793,0.07328,90700.0,90699.0,0.02896]
[1765284609993,0.05599,90694.0,90693.0,0.0691564]
[1765284612401,0.05599,90694.0,90693.0,0.0701564]
[1765284622205,0.01729,90700.0,90693.0,0.0701564]
[1765284622206,0.05834,90700.0,90699.0,0.0110257]
[1765284622402,0.05834,90700.0,90699.0,0.0665057]
[1765284623803,0.07569,90700.0,90699.0,0.0665057]
[1765284625113,0.07569,90700.0,90699.0,0.0110257]
[1765284625614,0.07569,90700.0,90699.0,0.0381257]
[1765284625810,0.07569,90700.0,90699.0,0.0665057]
[1765284627405,0.05834,90700.0,90699.0,0.0665057]
[1765284627607,0.07569,90700.0,90699.0,0.0665057]
[1765284633316,0.13522729,90700.0,90699.0,0.0665057]
[1765284635317,0.13522729,90700.0,90699.0,0.0110257]
[1765284635624,0.13522729,90700.0,90699.0,0.0381257]
[1765284635815,0.13522729,90700.0,90699.0,0.0665057]
[1765284637426,0.07569,90700.0,90699.0,0.0665057]
[1765284637827,0.13525473,90700.0,90699.0,0.0665057]
[1765284638925,0.07569,90700.0,90699.0,0.0665057]
[1765284641528,0.13525517,90700.0,90699.0,0.0665057]
[1765284643827,0.05834,90699.0,90698.0,0.3608]
[1765284644032,0.05834,90697.0,90696.0,0.011026]
[1765284644531,0.07569,90688.0,90687.0,0.43128]
[1765284644732,0.07569,90688.0,90687.0,0.9538271]
[1765284645632,0.07569,90688.0,90687.0,0.9558271]
[1765284646628,0.07569,90688.0,90687.0,0.9568271]
[1765284647222,0.07569,90688.0,90687.0,0.4453071]
[1765284647429,0.07569,90688.0,90687.0,0.9568271]
[1765284648236,0.07569,90688.0,90687.0,0.9558271]
[1765284648425,0.07569,90688.0,90687.0,0.9568271]
[1765284648625,0.07569,90688.0,90687.0,0.4453071]
[1765284648821,0.07569,90688.0,90687.0,0.4433071]
[1765284649030,0.07569,90688.0,90687.0,0.4453071]
[1765284649825,0.07069072,90688.0,90687.0,0.4453071]
[1765284650636,0.07069072,90688.0,90687.0,0.4443071]
[1765284650935,0.07069072,90688.0,90687.0,0.4433071]
[1765284654239,0.07069072,90688.0,90687.0,0.4423071]
[1765284654428,0.07069072,90688.0,90687.0,0.4433071]
[1765284658734,0.07069072,90688.0,90687.0,0.0825071]
[1765284658938,0.07069072,90688.0,90687.0,0.016]
[1765284659137,0.1500764,90688.0,90687.0,0.016]
[1765284659334,0.07069072,90688.0,90687.0,0.016]
[1765284660037,0.1510764,90688.0,90687.0,0.016]
[1765284660439,0.07068131,90688.0,90687.0,0.016]
[1765284660635,0.07068131,90688.0,90687.0,0.07415]
[1765284660841,0.05433131,90688.0,90687.0,0.07415]
[1765284661040,0.005,90688.0,90687.0,0.07315]
[1765284661640,0.002,90688.0,90687.0,0.07315]
[1765284662643,0.11830216,90695.0,90694.0,0.0691763]
[1765284662940,0.05833496,90695.0,90694.0,0.4299763]
[1765284664133,0.11881712,90695.0,90694.0,0.4299763]
[1765284664335,0.05933496,90695.0,90694.0,0.4299763]
[1765284664533,0.001,90695.0,90694.0,0.4299763]
[1765284665347,0.0291,90695.0,90694.0,0.4299763]
[1765284666049,0.001,90695.0,90694.0,0.4299763]
[1765284667748,0.08758216,90706.0,90705.0,0.05828]
[1765284667945,0.08758216,90706.0,90705.0,0.41908]
[1765284668150,0.11704216,90706.0,90705.0,0.41908]
[1765284668848,0.11904216,90706.0,90705.0,0.41908]
[1765284669152,0.11904216,90706.0,90705.0,0.4301049]
[1765284669351,0.05956,90706.0,90705.0,0.4301049]
[1765284669750,0.06156,90706.0,90705.0,0.4301049]
[1765284670147,0.12104216,90706.0,90705.0,0.41908]
[1765284671045,0.06156,90706.0,90705.0,0.41908]
[1765284675950,0.06156,90706.0,90705.0,0.4301049]
[1765284677253,0.01627,90700.0,90698.0,0.0693057]
[1765284677453,0.01627,90700.0,90698.0,0.05828]
[1765284677454,0.05756,90699.0,90698.0,0.05828]
[1765284677651,0.05756,90697.0,90696.0,0.02887545]
[1765284677849,0.05756,90697.0,90696.0,0.05844545]
[1765284679357,0.05856,90697.0,90696.0,0.05844545]
[1765284682860,0.05856,90697.0,90696.0,0.02887545]
[1765284683067,0.05856,90697.0,90696.0,0.05644545]
[1765284683264,0.0291,90697.0,90696.0,0.06747145]
[1765284683564,0.05747,90697.0,90696.0,0.06747145]
[1765284692469,0.05747,90697.0,90696.0,0.05644545]
[1765284700976,0.05747,90697.0,90696.0,0.06922545]
[1765284700977,0.001,90697.0,90696.0,0.06922545]
[1765284701369,0.02974,90697.0,90696.0,0.06922545]
[1765284701778,0.05811,90697.0,90696.0,0.05644545]
[1765284708075,0.05811,90697.0,90696.0,0.41724545]
[1765284708476,0.05811,90697.0,90696.0,0.05644545]
[1765284717797,0.05811,90697.0,90696.0,0.05785545]
[1765284718095,0.05811,90697.0,90696.0,0.02795545]
[1765284718294,0.05811,90697.0,90696.0,0.05785545]
[1765284736294,0.05811,90697.0,90696.0,0.06888145]
[1765284736904,0.05811,90697.0,90696.0,0.05785545]
[1765284737310,0.41891,90697.0,90696.0,0.05785545]
[1765284740402,0.3618,90697.0,90696.0,0.00016545]
[1765284740703,0.44111499,90697.0,90696.0,0.00016545]
[1765284742300,0.3618,90697.0,90696.0,0.00016545]
[1765284751612,0.011027,90688.0,90687.0,1e-07]
[1765284751820,0.3608,90688.0,90666.0,0.3608]
[1765284752126,0.05943728,90672.0,90667.0,0.0110295]
[1765284752316,0.05943728,90673.0,90671.0,0.0110289]
[1765284753224,0.05943728,90674.0,90671.0,0.0110289]
[1765284753520,0.0110295,90672.0,90671.0,0.0110289]
[1765284753717,0.0110295,90672.0,90671.0,0.0130289]
[1765284754513,0.07046618,90675.0,90674.0,0.0110287]
[1765284754715,0.0110289,90675.0,90674.0,0.0110287]
[1765284755419,0.05943728,90676.0,90674.0,0.0110287]
[1765284755921,0.07046588,90676.0,90674.0,0.0110287]
[1765284756124,0.0110286,90676.0,90674.0,0.0110287]
[1765284756326,0.07046588,90676.0,90674.0,0.0130287]
[1765284756517,0.05943728,90677.0,90676.0,0.0110284]
[1765284756821,0.05943728,90680.0,90678.0,0.0110282]
[1765284757018,0.00016545,90681.0,90680.0,0.011028]
[1765284759119,0.00016545,90681.0,90680.0,0.012028]
[1765284759322,0.00016545,90681.0,90680.0,0.013028]
[1765284759526,0.00016545,90681.0,90680.0,0.012028]
[1765284759726,0.00016545,90681.0,90680.0,0.013028]
[1765284760829,0.00016545,90681.0,90680.0,0.012028]
[1765284766534,0.00016545,90681.0,90680.0,0.001]
[1765284767031,0.36096545,90681.0,90680.0,0.001]
[1765284767848,0.36096545,90681.0,90669.0,0.0110293]
[1765284768034,0.05949357,90674.0,90669.0,0.0110293]
[1765284768936,0.0110292,90670.0,90669.0,0.0110293]
[1765284769135,0.0110292,90670.0,90669.0,0.0120293]
[1765284770646,0.0110292,90670.0,90669.0,0.0130293]
[1765284771244,0.0110292,90670.0,90669.0,0.0140293]
[1765284771750,0.0110292,90670.0,90669.0,0.0120293]
[1765284771951,0.0110292,90670.0,90669.0,0.0130293]
[1765284773353,0.0110292,90670.0,90669.0,0.002]
[1765284773954,0.0110292,90670.0,90669.0,0.003]
[1765284774541,0.0110292,90670.0,90669.0,0.001]
[1765284775052,0.0110292,90670.0,90668.0,0.0110293]
[1765284775250,0.0110292,90670.0,90669.0,0.001]
[1765284776556,0.0673492,90670.0,90669.0,0.001]
[1765284777661,0.4281492,90670.0,90669.0,0.001]
[1765284778748,0.41712,90670.0,90669.0,0.05899]
[1765284779650,0.41712,90670.0,90669.0,0.001]
[1765284781358,0.41712,90670.0,90669.0,0.05899]
[1765284781959,0.05632,90670.0,90669.0,0.41979]
[1765284782553,0.07356,90678.0,90677.0,0.0690183]
[1765284782757,0.07356,90678.0,90677.0,0.4298183]
[1765284783552,0.05632,90678.0,90677.0,0.4298183]
[1765284783754,0.05732,90678.0,90677.0,0.4298183]
[1765284783948,0.05832,90678.0,90677.0,0.4298183]
[1765284784150,0.002,90678.0,90677.0,0.4298183]
[1765284784557,0.03136,90678.0,90677.0,0.4298183]
[1765284784858,0.05858,90678.0,90677.0,0.4298183]
[1765284785061,0.05858,90678.0,90677.0,0.4308183]
[1765284785261,0.05758,90678.0,90677.0,0.4308183]
[1765284785461,0.02936,90678.0,90677.0,0.4308183]
[1765284785666,0.02952545,90681.0,90680.0,0.068828]
[1765284786556,0.05774545,90681.0,90680.0,0.068828]
[1765284786957,0.05774545,90681.0,90680.0,0.070828]
[1765284787365,0.05774545,90681.0,90680.0,0.073828]
[1765284787567,0.05774545,90681.0,90680.0,0.434628]
[1765284789169,0.05774545,90681.0,90680.0,0.433628]
[1765284791275,0.00016545,90681.0,90680.0,0.432628]
[1765284791471,0.02952545,90681.0,90680.0,0.433628]
[1765284791774,0.00016545,90681.0,90680.0,0.447518]
[1765284792869,0.05774545,90681.0,90680.0,0.430628]
[1765284793071,0.05774545,90681.0,90680.0,0.433628]
[1765284795780,0.05774545,90681.0,90680.0,0.434628]
[1765284796479,0.05774545,90681.0,90680.0,0.431628]
[1765284796679,0.05774545,90681.0,90680.0,0.434628]
[1765284796872,0.05774545,90681.0,90680.0,0.946108]
[1765284797778,0.05774545,90681.0,90680.0,0.944108]
[1765284797975,0.05774545,90681.0,90680.0,0.946108]
[1765284798780,0.05774545,90681.0,90680.0,0.945108]
[1765284798980,0.05774545,90681.0,90680.0,0.942108]
[1765284799181,0.05774545,90681.0,90680.0,0.945108]
[1765284799581,0.05774545,90681.0,90680.0,0.942108]
[1765284799778,0.05774545,90681.0,90680.0,0.945108]
[1765284800485,0.05774545,90681.0,90680.0,0.946108]
[1765284801180,0.05774545,90681.0,90680.0,0.945108]
[1765284802077,0.05774545,90681.0,90680.0,0.946108]
[1765284802688,0.05774545,90681.0,90680.0,0.943108]
[1765284802987,0.05774545,90681.0,90680.0,0.946108]
[1765284805384,0.05774545,90681.0,90680.0,0.943108]
[1765284805582,0.05774545,90681.0,90680.0,0.946108]
[1765284807077,0.05774545,90681.0,90680.0,0.943108]
[1765284807279,0.05774545,90681.0,90680.0,0.946108]
[1765284808299,0.05774545,90681.0,90680.0,0.944108]
[1765284808506,0.05774545,90681.0,90680.0,0.945108]
[1765284808707,0.00016545,90681.0,90680.0,0.945108]
[1765284809299,0.00016545,90681.0,90680.0,0.942108]
[1765284809494,0.00016545,90681.0,90680.0,0.945108]
[1765284809899,0.00016545,90681.0,90680.0,0.944108]
[1765284810110,0.00016545,90681.0,90680.0,0.946108]
[1765284810899,0.00016545,90681.0,90680.0,0.943108]
[1765284811101,0.00016545,90681.0,90680.0,0.946108]
[1765284815006,0.02857545,90681.0,90680.0,0.946108]
[1765284815306,0.00016545,90681.0,90680.0,0.946108]
[1765284818209,0.05949357,90687.0,90686.0,0.0669972]
[1765284818508,0.05949357,90696.0,90695.0,0.0669961]
[1765284818710,0.05949357,90696.0,90695.0,0.5784361]
[1765284819110,0.08790357,90697.0,90696.0,0.05597]
[1765284819312,0.02841,90697.0,90696.0,0.05597]
[1765284819510,0.05646,90697.0,90696.0,0.05597]
[1765284821417,0.05746,90697.0,90696.0,0.05597]
[1765284824812,0.02941,90697.0,90696.0,0.05597]
[1765284825408,0.05746,90697.0,90696.0,0.05597]
[1765284833117,0.07402,90696.0,90695.0,0.0110261]
[1765284833317,0.07402,90696.0,90695.0,0.5224261]
[1765284833517,0.07402,90696.0,90695.0,0.0110261]
[1765284834721,0.05689,90699.0,90698.0,0.0705558]
[1765284835028,0.05689,90699.0,90698.0,0.4313558]
[1765284835622,0.05689,90707.0,90706.0,0.0705548]
[1765284835823,0.05689,90707.0,90706.0,0.4313548]
[1765284836827,0.05889,90707.0,90706.0,0.4313548]
[1765284837126,0.06189,90707.0,90706.0,0.4313548]
[1765284841325,0.06189,90707.0,90706.0,0.42033]
[1765284841534,0.06189,90707.0,90706.0,0.93169]
[1765284842130,0.12138357,90707.0,90706.0,0.51136]
[1765284842322,0.06189,90707.0,90706.0,0.54109]
[1765284842922,0.06189,90707.0,90706.0,0.02973]
[1765284846330,0.005,90707.0,90706.0,0.05953]
[1765284846527,0.03261,90707.0,90706.0,0.42033]
[1765284846727,0.06131,90707.0,90706.0,0.42033]
[1765284850036,0.005,90707.0,90706.0,0.42033]
[1765284851641,0.00110236,90715.0,90714.0,0.0692238]
[1765284851940,0.00093681,90715.0,90714.0,0.9413838]
[1765284852343,0.05724681,90715.0,90714.0,0.9413838]
[1765284852640,0.00093681,90715.0,90714.0,0.9413838]
[1765284852944,0.00393681,90715.0,90714.0,0.9413838]
[1765284853239,0.00793681,90715.0,90714.0,0.9413838]
[1765284853428,0.03554681,90715.0,90714.0,0.9413838]
[1765284853825,0.06424681,90715.0,90714.0,0.9413838]
[1765284855142,0.06424681,90715.0,90714.0,0.4001038]
[1765284855437,0.06424681,90715.0,90714.0,0.9004]
[1765284856930,0.07277,90710.0,90705.0,0.00016535]
[1765284857149,0.05631,90706.0,90705.0,0.00016535]
[1765284857336,0.11579778,90706.0,90705.0,0.00016535]
[1765284857838,0.05631,90706.0,90705.0,0.00016535]
[1765284858930,0.05731,90706.0,90705.0,0.00016535]
[1765284861931,0.11674165,90706.0,90705.0,0.00016535]
[1765284863839,0.11674165,90706.0,90705.0,0.02844535]
[1765284864044,0.11674165,90706.0,90705.0,0.06670025]
[1765284864348,0.11674165,90706.0,90705.0,0.05567535]
[1765284864536,0.11674165,90706.0,90705.0,0.00016535]
[1765284869747,0.11674165,90706.0,90705.0,0.05700535]
[1765284870053,0.11674165,90706.0,90705.0,0.00016535]
[1765284871752,0.05731,90706.0,90705.0,0.00016535]
[1765284872857,0.05719,90688.0,90687.0,0.41764]
[1765284874055,0.05719,90688.0,90687.0,0.41864]
[1765284874354,0.05719,90688.0,90687.0,0.42164]
[1765284877054,0.05719,90688.0,90687.0,0.42064]
[1765284877254,0.05719,90688.0,90687.0,0.06084]
[1765284877649,0.05719,90688.0,90687.0,0.05984]
[1765284878953,0.05719,90688.0,90687.0,0.05884]
[1765284879250,0.07351,90688.0,90687.0,0.42064]
[1765284879851,0.07351,90688.0,90687.0,0.41764]
[1765284880053,0.05719,90688.0,90687.0,0.41964]
[1765284880446,0.05719,90695.0,90694.0,0.0678663]
[1765284880655,0.02797,90695.0,90694.0,0.0678663]
[1765284880958,0.05719,90695.0,90694.0,0.0678663]
[1765284881655,0.05719,90695.0,90694.0,0.0688663]
[1765284897082,0.11662058,90695.0,90694.0,0.0688663]
[1765284898287,0.11662058,90695.0,90694.0,0.0120263]
[1765284898981,0.11662058,90695.0,90694.0,0.0399063]
[1765284899183,0.11662058,90695.0,90694.0,0.0684463]
[1765284901889,0.05719,90695.0,90694.0,0.0684463]
[1765284910984,0.0595956,90697.0,90696.0,0.069346]
[1765284911190,0.00016502,90697.0,90696.0,0.083236]
[1765284911996,0.00016502,90697.0,90696.0,0.594636]
[1765284912296,0.00016502,90697.0,90696.0,0.956436]
[1765284914304,0.00016502,90697.0,90696.0,0.98600747]
[1765284915702,0.00016502,90697.0,90696.0,1.317236]
[1765284917305,0.05641502,90697.0,90696.0,1.317236]
[1765284918100,0.05641502,90697.0,90696.0,1.303346]
[1765284919700,0.00016502,90697.0,90696.0,1.303346]
[1765284919907,0.00016502,90697.0,90696.0,1.317236]
[1765284921298,0.00016502,90697.0,90696.0,0.805836]
[1765284921600,0.00016502,90697.0,90696.0,1.317196]
[1765284922799,0.00016502,90697.0,90696.0,0.805836]
[1765284923001,0.00016502,90697.0,90696.0,1.317196]
[1765284923908,0.00016502,90697.0,90696.0,0.805836]
[1765284924210,0.00016502,90697.0,90696.0,1.317196]
[1765284930604,0.00016502,90697.0,90696.0,0.956396]